[Event "Slovakia Chess Open 2024"]
[Site "Modra"]
[Date "2024.03.04"]
[Round "6.6"]
[White "Galla, Richard"]
[Black "Bucor, Mark"]
[Result "1/2-1/2"]
[ECO "D00"]
[WhiteElo "1975"]
[BlackElo "1852"]
[Annotator "ChessBase"]
[PlyCount "69"]
[EventDate "2024.02.29"]
[EventType "swiss"]
[EventCountry "SVK"]
[SourceTitle "playchess.com"]
[Source "ChessBase"]
[SourceQuality "1"]
[TimeControl "5400+30"]

1. d4 {[%emt 0:00:28]} Nf6 {[%emt 0:00:09]} 2. Nc3 {[%emt 0:01:04]} d5 {[%emt 0:00:43]} 3. Bf4 {[%emt 0:00:06]} e6 {[%emt 0:02:03]} 4. Nf3 {[%emt 0:01:01]} c5 {[%emt 0:02:42]} 5. e3 {[%emt 0:01:05]} a6 {[%emt 0:00:24]} 6. Bd3 {[%emt 0:02:29]} Nc6 {[%emt 0:00:30]} 7. h3 {[%emt 0:05:50]} Bd6 {[%emt 0:06:17]} 8. dxc5 {[%emt 0:00:29]} Bxf4 {[%emt 0:05:28]} 9. exf4 {[%emt 0:00:03]} Qa5 {[%emt 0:00:10]} 10. Qd2 {[%emt 0:07:23]} Qxc5 {[%emt 0:00:51]} 11. a3 {[%emt 0:01:59]} b5 {[%emt 0:00:46]} 12. O-O {[%emt 0:01:50]} O-O {[%emt 0:01:58]} 13. Rfe1 {[%emt 0:01:29]} Bb7 {[%emt 0:04:02]} 14. Ne5 {[%emt 0:03:36]} Qd6 {[%emt 0:02:09]} 15. Rad1 {[%emt 0:10:08]} Rac8 {[%emt 0:05:50]} 16. Na2 {[%emt 0:07:43]} Nd7 {[%emt 0:06:56]} 17. Nxd7 {[%emt 0:01:51]} Qxd7 {[%emt 0:00:12]} 18. Nc1 {[%emt 0:03:31]} Qe7 {[%emt 0:04:29]} 19. b4 {[%emt 0:02:00]} Qf6 {[%emt 0:19:57]} 20. Nb3 {[%emt 0:04:10]} Rc7 {[%emt 0:00:15]} 21. Nc5 {[%emt 0:02:26]} Rfc8 {[%emt 0:00:46]} 22. c3 {[%emt 0:05:58]} Nb8 {[%emt 0:01:03]} 23. g4 {[%emt 0:07:24]} Nd7 {[%emt 0:01:38]} 24. g5 {[%emt 0:00:39]} Qe7 {[%emt 0:01:00]} 25. Nxd7 {[%emt 0:02:41]} Qxd7 {[%emt 0:00:27]} 26. Re3 {[%emt 0:00:11]} g6 {[%emt 0:01:32]} 27. Be2 {[%emt 0:01:53]} Qd6 {[%emt 0:05:19]} 28. Qd4 {[%emt 0:00:49]} Qf8 {[%emt 0:00:16]} 29. Kh2 {[%emt 0:04:32]} Qg7 {[%emt 0:01:36]} 30. Qxg7+ {[%emt 0:01:22]} Kxg7 {[%emt 0:00:08]} 31. Rdd3 {[%emt 0:00:16]} Bc6 {[%emt 0:01:55]} 32. Kg3 {[%emt 0:01:05]} Bd7 {[%emt 0:00:20]} 33. Bg4 {[%emt 0:00:47]} h5 {[%emt 0:01:32]} 34. Be2 {[%emt 0:01:35]} Bc6 {[%emt 0:09:12]} 35. Bd1 {[%emt 0:01:18]} 1/2-1/2

[Event "Slovakia Chess Open 2024"]
[Site "Modra"]
[Date "2024.03.04"]
[Round "6.7"]
[White "Hasala, Richard"]
[Black "Petrik, Matus"]
[Result "1-0"]
[ECO "B85"]
[WhiteElo "1935"]
[BlackElo "1812"]
[Annotator "RC"]
[PlyCount "61"]
[EventDate "2024.02.29"]
[EventType "swiss"]
[EventCountry "SVK"]
[SourceTitle "playchess.com"]
[Source "ChessBase"]
[SourceQuality "1"]
[TimeControl "5400+30"]

1. e4 {[%emt 0:08:07]} c5 {[%emt 0:08:13]} 2. Nf3 {[%emt 0:01:02]} e6 {[%emt 0:00:05]} 3. d4 {[%emt 0:00:10]} cxd4 {[%emt 0:00:05]} 4. Nxd4 {[%emt 0:00:08]} Nc6 {[%emt 0:00:03]} 5. Nc3 {[%emt 0:00:40]} Qc7 {[%emt 0:00:08]} 6. Be3 {[%emt 0:01:39]} a6 {[%emt 0:00:03]} 7. Be2 {[%emt 0:00:18]} Nf6 {[%emt 0:00:08]} 8. O-O {[%emt 0:00:07]} Be7 {[%emt 0:00:17]} 9. a4 {[%emt 0:03:48]} O-O {[%emt 0:00:51]} 10. f4 {[%emt 0:03:53]} d6 {[%emt 0:01:10]} 11. f5 {[%emt 0:01:08]} Nxd4 {[%emt 0:01:45]} 12. Bxd4 {[%emt 0:00:23]} e5 {[%emt 0:00:08]} 13. Be3 {[%emt 0:00:32]} Bd7 {[%emt 0:00:22]} 14. g4 {[%emt 0:00:22]} Bc6 {[%emt 0:00:31]} 15. Bf3 {[%emt 0:00:58]} h6 {[%emt 0:05:17]} 16. a5 {[%emt 0:02:27]} Nh7 {[%emt 0:02:21]} 17. Qe1 {[%emt 0:02:42]} Bg5 {[%emt 0:00:35]} 18. Bf2 {[%emt 0:04:56]} Bf4 {[%emt 0:04:29]} 19. h4 {[%emt 0:00:43]} Bb5 {[%emt 0:05:06]} 20. Be2 {[%emt 0:03:09]} Nf6 {[%emt 0:03:02]} 21. Bd3 {[%emt 0:13:19]} Bxd3 {[%emt 0:07:40]} 22. cxd3 {[%emt 0:00:12]} Nxg4 {[%emt 0:00:03]} 23. Bb6 {[%emt 0:00:58]} Qd7 {[%emt 0:00:53]} 24. Nd5 {[%emt 0:00:05]} Bh2+ {[%emt 0:01:16]} 25. Kh1 {[%emt 0:01:45]} h5 {[%emt 0:04:47]} 26. f6 {[%emt 0:06:01]} g6 {[%emt 0:00:50]} 27. Rc1 {[%emt 0:00:02]} Qb5 {[%emt 0:02:42]} 28. Qe2 {[%emt 0:05:11]} Bg3 {[%emt 0:08:11]} 29. Rg1 {[%emt 0:03:23]} Bxh4 {[%emt 0:01:09]} 30. Rxg4 {[%emt 0:00:04]} hxg4 {[%emt 0:00:47]} 31. Qxg4 {[%emt 0:00:09]} 1-0

[Event "Slovakia Chess Open 2024"]
[Site "Modra"]
[Date "2024.03.04"]
[Round "6.8"]
[White "Chojnacki, Kevin"]
[Black "Kukla, Tomas"]
[Result "0-1"]
[ECO "A09"]
[WhiteElo "1672"]
[BlackElo "1864"]
[Annotator "NA RC"]
[PlyCount "54"]
[EventDate "2024.02.29"]
[EventType "swiss"]
[EventCountry "SVK"]
[SourceTitle "playchess.com"]
[Source "ChessBase"]
[SourceQuality "1"]
[TimeControl "5400+30"]

1. Nf3 {[%emt 0:00:08]} Nf6 {[%emt 0:00:06]} 2. g3 {[%emt 0:00:11]} c5 {[%emt 0:00:58]} 3. Bg2 {[%emt 0:00:10]} d5 {[%emt 0:00:35]} 4. c4 {[%emt 0:00:14]} d4 {[%emt 0:00:27]} 5. b3 {[%emt 0:00:30]} Nc6 {[%emt 0:01:10]} 6. e3 {[%emt 0:00:40] A09: Réti Opening: 1 Nf3 d5 2 c4.} e5 {[%emt 0:00:28]} 7. exd4 {[%emt 0:00:07]} exd4 {[%emt 0:00:08]} 8. d3 {[%emt 0:00:05]} Bd6 {[%emt 0:01:23]} 9. O-O {[%emt 0:00:18]} O-O {[%emt 0:00:31]} 10. a3 {[%emt 0:00:31]} a5 {[%emt 0:00:53]} 11. Bg5 {[%emt 0:00:19]} h6 {[%emt 0:00:33]} 12. Bxf6 {[%emt 0:00:15]} Qxf6 {[%emt 0:00:09]} 13. Nbd2 {[%emt 0:00:09]} Bg4 {[%emt 0:01:54]} 14. Ne4 {[%emt 0:01:02]} Qe7 {[%emt 0:04:24]} 15. Nxd6 {[%emt 0:00:16]} Qxd6 {[%emt 0:01:07]} 16. Qc2 {[%emt 0:02:13]} Rae8 {[%emt 0:01:02]} 17. Rfe1 {[%emt 0:01:13]} f5 {[%emt 0:01:17]} 18. Rxe8 {[%emt 0:04:14]} Rxe8 {[%emt 0:02:04]} 19. Re1 {[%emt 0:00:02]} Rf8 {[%emt 0:02:00]} 20. h3 {[%emt 0:01:52]} Bh5 {[%emt 0:00:47]} 21. Nh4 {[%emt 0:00:46]} g5 {[%emt 0:02:09]} 22. Bd5+ {[%emt 0:00:23]} Kg7 {[%emt 0:01:31]} 23. Re6 {[%emt 0:03:51]} Qc7 {[%emt 0:01:54] [#]} 24. Qd2 $19 {[%emt 0:01:50]} Nd8 {[%emt 0:06:04]} 25. Nxf5+ {[%emt 0:04:41]} Rxf5 {[%emt 0:00:17]} 26. g4 {[%emt 0:00:11]} Nxe6 {[%emt 0:10:33]} 27. Bxe6 {[%emt 0:03:51]} Re5 {[%emt 0:01:15]} 0-1

[Event "Slovakia Chess Open 2024"]
[Site "Modra"]
[Date "2024.03.04"]
[Round "6.9"]
[White "Pisarcik, Richard"]
[Black "Hitka, Dominik"]
[Result "1-0"]
[ECO "D78"]
[WhiteElo "1855"]
[BlackElo "1709"]
[Annotator "NA RC"]
[PlyCount "51"]
[EventDate "2024.02.29"]
[EventType "swiss"]
[EventCountry "SVK"]
[SourceTitle "playchess.com"]
[Source "ChessBase"]
[SourceQuality "1"]
[TimeControl "5400+30"]

1. d4 {[%emt 0:00:09]} Nf6 {[%emt 0:00:33]} 2. c4 {[%emt 0:00:11]} g6 {[%emt 0:00:22]} 3. g3 {[%emt 0:00:07]} c6 {[%emt 0:01:34]} 4. Bg2 {[%emt 0:01:14]} d5 {[%emt 0:00:30]} 5. Nf3 {[%emt 0:00:14]} Bg7 {[%emt 0:00:29]} 6. O-O {[%emt 0:00:25]} O-O {[%emt 0:00:39]} 7. Nc3 {[%emt 0:00:53]} dxc4 {[%emt 0:01:16]} 8. Qa4 {[%emt 0:02:35]} Nbd7 {[%emt 0:01:33]} 9. Qxc4 {[%emt 0:01:00]} Nb6 {[%emt 0:00:16]} 10. Qd3 {[%emt 0:03:27]} Bd7 {[%emt 0:02:30]} 11. e4 {[%emt 0:03:35]} Qc8 {[%emt 0:00:45]} 12. b3 {[%emt 0:07:49]} Bh3 $16 {[%emt 0:00:48]} 13. Ba3 {[%emt 0:19:05]} Bxg2 {[%emt 0:14:47]} 14. Kxg2 {[%emt 0:00:30]} Re8 {[%emt 0:00:30]} 15. Rac1 {[%emt 0:00:30]} Qd8 {[%emt 0:00:30]} 16. Rfd1 {[%emt 0:00:30]} e6 {[%emt 0:00:30]} 17. h3 {[%emt 0:00:30]} Bf8 {[%emt 0:00:30]} 18. Bb2 {[%emt 0:00:30]} Qe7 {[%emt 0:00:30]} 19. e5 {[%emt 0:00:30]} Nfd5 {[%emt 0:00:30]} 20. Ne4 {[%emt 0:00:30]} Bg7 {[%emt 0:02:05]} 21. Nd6 {[%emt 0:00:30]} Red8 {[%emt 0:00:30]} 22. h4 {[%emt 0:02:19]} f6 {[%emt 0:02:22]} 23. Nd2 {[%emt 0:02:04]} fxe5 {[%emt 0:04:25]} 24. dxe5 {[%emt 0:01:42]} Nd7 {[%emt 0:00:28]} 25. f4 {[%emt 0:05:56]} Qxh4 {[%emt 0:02:37]} 26. Qxd5 {[%emt 0:03:09]} 1-0

[Event "Slovakia Chess Open 2024"]
[Site "Modra"]
[Date "2024.03.04"]
[Round "6.10"]
[White "Visvader, Kristof"]
[Black "Pietrucha, Jaroslaw"]
[Result "1/2-1/2"]
[ECO "C50"]
[WhiteElo "1696"]
[BlackElo "1781"]
[Annotator "NA RC"]
[PlyCount "168"]
[EventDate "2024.02.29"]
[EventType "swiss"]
[EventCountry "SVK"]
[SourceTitle "playchess.com"]
[Source "ChessBase"]
[SourceQuality "1"]
[TimeControl "5400+30"]

1. e4 {[%emt 0:01:21]} e5 {[%emt 0:06:36]} 2. Nf3 {[%emt 0:01:26]} d6 {[%emt 0:00:50]} 3. Nc3 {[%emt 0:01:08]} Nf6 {[%emt 0:00:29]} 4. Bc4 {[%emt 0:01:18]} Be7 {[%emt 0:00:50]} 5. O-O {[%emt 0:01:47]} Nc6 {[%emt 0:00:28]} 6. d4 {[%emt 0:02:37]} exd4 {[%emt 0:01:28]} 7. Nxd4 {[%emt 0:00:23]} Bd7 {[%emt 0:01:03]} 8. Bf4 {[%emt 0:02:45]} O-O {[%emt 0:01:17]} 9. Re1 {[%emt 0:02:06]} Nxd4 {[%emt 0:00:38]} 10. Qxd4 {[%emt 0:03:38]} Bc6 {[%emt 0:00:58]} 11. Rad1 {[%emt 0:01:28]} Nd7 {[%emt 0:00:47]} 12. e5 {[%emt 0:08:34]} dxe5 {[%emt 0:02:20]} 13. Bxe5 {[%emt 0:00:19]} Nxe5 {[%emt 0:01:21]} 14. Qxe5 {[%emt 0:02:53]} Bd6 {[%emt 0:01:14]} 15. Qh5 {[%emt 0:02:17]} g6 {[%emt 0:02:37]} 16. Qh6 {[%emt 0:03:17]} Qf6 {[%emt 0:00:48]} 17. Kf1 {[%emt 0:11:25]} Bf4 {[%emt 0:09:57]} 18. Qh3 {[%emt 0:01:00]} Rfe8 {[%emt 0:01:14]} 19. Rxe8+ {[%emt 0:04:15]} Rxe8 {[%emt 0:00:48]} 20. Nd5 {[%emt 0:01:07]} Bxd5 {[%emt 0:01:48]} 21. Bxd5 {[%emt 0:03:44]} Qxb2 {[%emt 0:15:19]} 22. Qb3 {[%emt 0:06:14]} Qxb3 {[%emt 0:01:46]} 23. cxb3 {[%emt 0:00:56]} b6 {[%emt 0:02:50]} 24. Re1 {[%emt 0:02:54]} Rd8 {[%emt 0:00:37]} 25. Rd1 {[%emt 0:00:29]} Kg7 {[%emt 0:00:54]} 26. Bf3 {[%emt 0:01:15]} Bd6 {[%emt 0:00:37]} 27. Bc6 {[%emt 0:01:20]} a5 {[%emt 0:01:27]} 28. a4 {[%emt 0:00:41]} h5 {[%emt 0:00:49]} 29. h3 {[%emt 0:00:45]} Kf6 {[%emt 0:01:27]} 30. Ke2 {[%emt 0:00:19]} g5 {[%emt 0:02:01]} 31. Rd5 {[%emt 0:00:59]} Kg6 {[%emt 0:03:44]} 32. f3 {[%emt 0:00:39]} h4 {[%emt 0:00:31]} 33. Ke3 {[%emt 0:01:28]} f5 {[%emt 0:00:48]} 34. Kd3 {[%emt 0:06:46]} Kf6 {[%emt 0:02:26]} 35. Kc4 {[%emt 0:00:57]} Ke6 {[%emt 0:01:01]} 36. Kd3 {[%emt 0:02:13]} Rh8 {[%emt 0:02:18]} 37. Kc4 {[%emt 0:01:14]} Rh7 {[%emt 0:00:57]} 38. Bb7 {[%emt 0:01:11]} Rh8 {[%emt 0:02:10]} 39. Bc6 {[%emt 0:03:32]} Rf8 {[%emt 0:00:35]} 40. Rb5 {[%emt 0:00:44]} Bc5 {[%emt 0:01:17]} 41. Rxc5 {[%emt 0:02:49]} bxc5 {[%emt 0:02:09]} 42. Kxc5 {[%emt 0:00:06]} Rb8 {[%emt 0:02:45]} 43. Bb5 {[%emt 0:00:35]} Ke7 {[%emt 0:06:28]} 44. Kc6 {[%emt 0:00:32]} Kd8 {[%emt 0:00:42]} 45. Kd5 {[%emt 0:00:31]} Rb6 {[%emt 0:04:09]} 46. Ke5 {[%emt 0:00:22]} Rd6 {[%emt 0:02:35]} 47. Kxf5 {[%emt 0:00:28]} Rd5+ {[%emt 0:00:43]} 48. Kg4 {[%emt 0:00:24]} Ke7 {[%emt 0:01:17]} 49. Bc4 {[%emt 0:00:56]} Rc5 {[%emt 0:00:34]} 50. f4 {[%emt 0:00:20]} Kf6 {[%emt 0:00:34]} 51. g3 {[%emt 0:02:06]} hxg3 {[%emt 0:00:52]} 52. Kxg3 {[%emt 0:00:07]} Rf5 {[%emt 0:01:55]} 53. fxg5+ {[%emt 0:00:20]} Rxg5+ {[%emt 0:01:26]} 54. Kf4 {[%emt 0:01:44]} Rh5 {[%emt 0:01:39]} 55. Ke4 {[%emt 0:01:22]} Rxh3 {[%emt 0:00:43]} 56. Kd5 {[%emt 0:00:21]} Ke7 {[%emt 0:00:41]} 57. Kc6 {[%emt 0:04:29]} Kd8 {[%emt 0:00:18]} 58. Kb5 {[%emt 0:00:40]} Rh5+ {[%emt 0:00:24]} 59. Kc6 {[%emt 0:01:03]} Kc8 {[%emt 0:00:27]} 60. Be6+ {[%emt 0:00:30]} Kb8 {[%emt 0:00:27]} 61. Bc4 {[%emt 0:01:20]} Re5 {[%emt 0:00:56]} 62. Bd5 {[%emt 0:01:11]} Rg5 {[%emt 0:01:39]} 63. Bc4 {[%emt 0:00:52]} Ka7 {[%emt 0:02:33]} 64. Kxc7 {[%emt 0:00:38]} Rc5+ {[%emt 0:00:21]} 65. Kd6 {[%emt 0:00:42]} Kb6 {[%emt 0:00:40]} 66. Bd5 {[%emt 0:01:08]} Rc1 {[%emt 0:00:33]} 67. Bc4 {[%emt 0:00:42]} Rd1+ {[%emt 0:00:32]} 68. Ke5 {[%emt 0:00:29]} Kc5 {[%emt 0:00:21]} 69. Ke4 {[%emt 0:00:16]} Kb4 {[%emt 0:00:36]} 70. Ke3 {[%emt 0:00:26]} Kc3 {[%emt 0:01:23]} 71. Ke4 {[%emt 0:00:36]} Rd4+ {[%emt 0:00:30]} 72. Ke3 {[%emt 0:00:13]} Rd7 {[%emt 0:00:38]} 73. Ke4 {[%emt 0:00:19]} Rd8 {[%emt 0:00:42]} 74. Ke5 {[%emt 0:00:32]} Rd4 {[%emt 0:00:47]} 75. Ke6 {[%emt 0:00:27]} Rxc4 {[%emt 0:00:50]} 76. bxc4 {[%emt 0:00:10]} Kxc4 {[%emt 0:01:02]} 77. Ke5 {[%emt 0:00:11]} Kb4 {[%emt 0:00:34]} 78. Kd4 {[%emt 0:00:28]} Kxa4 {[%emt 0:00:48]} 79. Kc4 {[%emt 0:00:18]} Ka3 {[%emt 0:00:40]} 80. Kc3 {[%emt 0:00:00]} Ka2 {[%emt 0:00:30]} 81. Kc2 {[%emt 0:00:11]} a4 {[%emt 0:00:36]} 82. Kc1 {[%emt 0:00:14]} a3 {[%emt 0:01:01]} 83. Kc2 {[%emt 0:00:08]} Ka1 {[%emt 0:00:08]} 84. Kc1 {[%emt 0:00:09]} a2 {[%emt 0:00:19]} 1/2-1/2

[Event "Slovakia Chess Open 2024"]
[Site "Modra"]
[Date "2024.03.04"]
[Round "6.11"]
[White "Palka, Miroslav"]
[Black "Rozboril, Alex"]
[Result "1-0"]
[ECO "A25"]
[WhiteElo "1780"]
[BlackElo "1563"]
[Annotator "NA"]
[PlyCount "35"]
[EventDate "2024.02.29"]
[EventType "swiss"]
[EventCountry "SVK"]
[SourceTitle "playchess.com"]
[Source "ChessBase"]
[SourceQuality "1"]
[TimeControl "5400+30"]

1. c4 {[%emt 0:00:06]} e5 {[%emt 0:00:05]} 2. Nc3 {[%emt 0:00:04]} Nf6 {[%emt 0:00:13]} 3. e4 {[%emt 0:00:06]} Nc6 {[%emt 0:01:20]} 4. g3 {[%emt 0:00:11]} Bc5 {[%emt 0:00:43]} 5. Bg2 {[%emt 0:00:13]} O-O {[%emt 0:00:26]} 6. Nge2 {[%emt 0:00:03]} d6 {[%emt 0:00:54]} 7. O-O {[%emt 0:00:08]} Bg4 {[%emt 0:00:42]} 8. h3 {[%emt 0:00:17]} Bxe2 {[%emt 0:01:39]} 9. Qxe2 {[%emt 0:01:37]} Nd4 {[%emt 0:00:11]} 10. Qd1 {[%emt 0:00:15]} c6 {[%emt 0:05:27]} 11. d3 {[%emt 0:00:07]} h6 {[%emt 0:00:17]} 12. Kh2 {[%emt 0:00:10]} Qb6 {[%emt 0:09:14]} 13. f4 {[%emt 0:01:09]} Rad8 {[%emt 0:10:04]} 14. fxe5 {[%emt 0:01:03]} dxe5 {[%emt 0:00:27]} 15. Rxf6 {[%emt 0:00:17]} gxf6 {[%emt 0:06:22]} 16. Bxh6 {[%emt 0:00:08]} Kh7 {[%emt 0:07:26]} 17. Qh5 {[%emt 0:00:30]} Qxb2 {[%emt 0:33:06]} 18. Bc1+ {[%emt 0:00:37]} 1-0

[Event "Slovakia Chess Open 2024"]
[Site "Modra"]
[Date "2024.03.04"]
[Round "6.12"]
[White "Nosal, Tobias"]
[Black "Loffay, Pavol"]
[Result "1-0"]
[ECO "A83"]
[WhiteElo "1773"]
[BlackElo "1753"]
[Annotator "NA RC"]
[PlyCount "65"]
[EventDate "2024.02.29"]
[EventType "swiss"]
[EventCountry "SVK"]
[SourceTitle "playchess.com"]
[Source "ChessBase"]
[SourceQuality "1"]
[TimeControl "5400+30"]

1. d4 {[%emt 0:00:10]} f5 {[%emt 0:00:03]} 2. Nc3 {[%emt 0:00:08]} Nf6 {[%emt 0:00:04]} 3. Bg5 {[%emt 0:00:08]} e6 {[%emt 0:00:27]} 4. e4 {[%emt 0:00:08]} fxe4 {[%emt 0:00:27]} 5. Nxe4 {[%emt 0:00:10]} Be7 {[%emt 0:00:37]} 6. Bxf6 {[%emt 0:00:10]} Bxf6 {[%emt 0:00:09]} 7. Nf3 {[%emt 0:00:25]} b6 {[%emt 0:00:51]} 8. Bd3 {[%emt 0:01:07]} Nc6 {[%emt 0:01:06]} 9. c3 {[%emt 0:02:00]} Bb7 {[%emt 0:00:49]} 10. Qe2 {[%emt 0:04:06]} Qe7 {[%emt 0:01:29]} 11. O-O-O {[%emt 0:03:50]} O-O-O {[%emt 0:01:11]} 12. Ba6 {[%emt 0:05:32]} Rhe8 {[%emt 0:04:12]} 13. Bxb7+ {[%emt 0:05:18]} Kxb7 {[%emt 0:00:07]} 14. Rhe1 {[%emt 0:03:36]} d5 {[%emt 0:10:20]} 15. Nc5+ {[%emt 0:08:58]} bxc5 {[%emt 0:16:12]} 16. Qb5+ {[%emt 0:00:35]} Kc8 {[%emt 0:00:11]} 17. Qxc6 {[%emt 0:01:35]} cxd4 {[%emt 0:00:51]} 18. cxd4 {[%emt 0:17:20]} Qd6 {[%emt 0:02:14]} 19. Qc3 {[%emt 0:12:39]} Kd7 {[%emt 0:12:03]} 20. Ne5+ {[%emt 0:03:43]} Bxe5 {[%emt 0:00:20]} 21. Rxe5 {[%emt 0:01:26]} Re7 {[%emt 0:04:44]} 22. Rde1 {[%emt 0:01:37]} Rc8 {[%emt 0:04:03]} 23. f4 {[%emt 0:03:41]} c5 {[%emt 0:09:06]} 24. Kb1 {[%emt 0:01:40]} g6 {[%emt 0:01:36]} 25. g4 {[%emt 0:03:08]} cxd4 {[%emt 0:05:51]} 26. Qxd4 {[%emt 0:00:41]} Qc5 {[%emt 0:04:59]} 27. Qa4+ {[%emt 0:03:30]} Kd6 {[%emt 0:03:10]} 28. f5 {[%emt 0:02:04]} gxf5 {[%emt 0:00:55]} 29. gxf5 {[%emt 0:01:40]} Rce8 {[%emt 0:03:41]} 30. Qf4 {[%emt 0:01:12]} Kd7 {[%emt 0:01:42]} 31. fxe6+ {[%emt 0:01:12]} Rxe6 {[%emt 0:01:44]} 32. Qf5 {[%emt 0:05:39]} Qe7 {[%emt 0:04:12]} 33. Rxe6 {[%emt 0:00:58]} 1-0

[Event "Slovakia Chess Open 2024"]
[Site "Modra"]
[Date "2024.03.04"]
[Round "6.13"]
[White "Fratric, Jakub"]
[Black "Smolka, Robert"]
[Result "1-0"]
[ECO "B38"]
[WhiteElo "1750"]
[BlackElo "1620"]
[Annotator "NA RC"]
[PlyCount "127"]
[EventDate "2024.02.29"]
[EventType "swiss"]
[EventCountry "SVK"]
[SourceTitle "playchess.com"]
[Source "ChessBase"]
[SourceQuality "1"]
[TimeControl "5400+30"]

1. e4 {[%emt 0:00:03]} c5 {[%emt 0:00:57]} 2. Nf3 {[%emt 0:00:11]} g6 {[%emt 0:00:12]} 3. c4 {[%emt 0:00:51]} Bg7 {[%emt 0:00:28]} 4. d4 {[%emt 0:00:29]} cxd4 {[%emt 0:04:39]} 5. Nxd4 {[%emt 0:00:11]} Nc6 {[%emt 0:00:21]} 6. Be3 {[%emt 0:00:14]} Nf6 {[%emt 0:02:15]} 7. Nc3 {[%emt 0:00:23]} O-O {[%emt 0:04:39]} 8. Be2 {[%emt 0:00:15]} d6 {[%emt 0:02:47]} 9. O-O {[%emt 0:00:24]} Qc7 {[%emt 0:08:39]} 10. Rc1 {[%emt 0:04:57]} Bd7 {[%emt 0:08:46]} 11. Nc2 {[%emt 0:11:39]} Rfd8 {[%emt 0:04:09]} 12. Qd2 {[%emt 0:07:18]} Ne5 {[%emt 0:00:18]} 13. b3 {[%emt 0:00:16]} d5 {[%emt 0:06:07]} 14. exd5 {[%emt 0:06:44]} Bg4 {[%emt 0:04:46]} 15. h3 {[%emt 0:01:20]} Bxe2 {[%emt 0:02:07]} 16. Qxe2 {[%emt 0:00:28]} a6 {[%emt 0:11:09]} 17. Na4 {[%emt 0:00:37]} Ned7 {[%emt 0:01:17]} 18. Rfd1 {[%emt 0:04:30]} Ne4 {[%emt 0:00:47]} 19. Bd4 {[%emt 0:01:26]} Ndc5 {[%emt 0:10:26]} 20. Nxc5 {[%emt 0:01:52]} Bxd4 {[%emt 0:00:37]} 21. Nxd4 {[%emt 0:00:36]} Nxc5 {[%emt 0:00:24]} 22. b4 {[%emt 0:01:00]} Na4 {[%emt 0:01:59]} 23. Nb3 {[%emt 0:09:49]} Rac8 {[%emt 0:02:12]} 24. Rd4 {[%emt 0:00:51]} Nb6 {[%emt 0:04:57]} 25. Re4 {[%emt 0:01:45]} Re8 {[%emt 0:02:30]} 26. d6 {[%emt 0:00:32]} Qc6 {[%emt 0:02:34]} 27. dxe7 {[%emt 0:05:40]} Rc7 {[%emt 0:01:41]} 28. b5 {[%emt 0:07:36]} Qf6 {[%emt 0:02:02]} 29. bxa6 {[%emt 0:02:11]} bxa6 {[%emt 0:03:40]} 30. c5 {[%emt 0:03:17]} Nd5 {[%emt 0:00:05]} 31. Qc4 {[%emt 0:00:47]} Nxe7 {[%emt 0:03:14]} 32. Rf4 {[%emt 0:00:40]} Qe6 {[%emt 0:00:59]} 33. Qxe6 {[%emt 0:00:28]} fxe6 {[%emt 0:00:02]} 34. Rd1 {[%emt 0:01:58]} Nd5 {[%emt 0:00:04]} 35. Rc4 {[%emt 0:02:46]} Nb6 {[%emt 0:01:46]} 36. Re4 {[%emt 0:00:20]} Nd5 {[%emt 0:00:02]} 37. Rxd5 {[%emt 0:00:11]} exd5 {[%emt 0:01:25]} 38. Rxe8+ {[%emt 0:00:11]} Kf7 {[%emt 0:00:02]} 39. Ra8 {[%emt 0:00:16]} Rc6 {[%emt 0:00:59]} 40. Ra7+ {[%emt 0:00:10]} Kf6 {[%emt 0:00:43]} 41. Rxh7 {[%emt 0:00:13]} a5 {[%emt 0:01:01]} 42. Rd7 {[%emt 0:00:24]} Ke5 {[%emt 0:00:17]} 43. f4+ {[%emt 0:00:29]} Ke4 {[%emt 0:00:20]} 44. Kf2 {[%emt 0:00:36]} a4 {[%emt 0:00:05]} 45. Nd2+ {[%emt 0:01:24]} Kd4 {[%emt 0:00:05]} 46. Ra7 {[%emt 0:01:10]} Rxc5 {[%emt 0:00:32]} 47. Rxa4+ {[%emt 0:00:15]} Kd3 {[%emt 0:00:05]} 48. Nf3 {[%emt 0:00:25]} Rc2+ {[%emt 0:00:45]} 49. Kg3 {[%emt 0:00:13]} Ke3 {[%emt 0:03:41]} 50. Rd4 {[%emt 0:01:04]} Rc5 {[%emt 0:00:11]} 51. a4 {[%emt 0:00:16]} Ra5 {[%emt 0:00:11]} 52. Rd2 {[%emt 0:00:25]} Rc5 {[%emt 0:00:18]} 53. Kg4 {[%emt 0:00:15]} Ke4 {[%emt 0:01:44]} 54. h4 {[%emt 0:01:05]} Rc4 {[%emt 0:00:38]} 55. Ra2 {[%emt 0:00:48]} Ke3 {[%emt 0:00:18]} 56. a5 {[%emt 0:00:19]} Rxf4+ {[%emt 0:00:03]} 57. Kg3 {[%emt 0:00:19]} d4 {[%emt 0:00:23]} 58. a6 {[%emt 0:00:33]} Rf8 {[%emt 0:00:07]} 59. a7 {[%emt 0:00:30]} Ra8 {[%emt 0:00:02]} 60. Ra3+ {[%emt 0:00:24]} d3 {[%emt 0:00:52]} 61. Ne1 {[%emt 0:00:30]} Rxa7 {[%emt 0:00:11]} 62. Nc2+ {[%emt 0:01:00]} Kd2 {[%emt 0:00:34]} 63. Rxa7 {[%emt 0:00:13]} dxc2 {[%emt 0:00:19]} 64. Ra2 {[%emt 0:00:14]} 1-0

[Event "Slovakia Chess Open 2024"]
[Site "Modra"]
[Date "2024.03.04"]
[Round "6.14"]
[White "Pikulik, Roman"]
[Black "Hanzel, Richard"]
[Result "1-0"]
[ECO "B12"]
[WhiteElo "1675"]
[BlackElo "1531"]
[Annotator "NA"]
[PlyCount "39"]
[EventDate "2024.02.29"]
[EventType "swiss"]
[EventCountry "SVK"]
[SourceTitle "playchess.com"]
[Source "ChessBase"]
[SourceQuality "1"]
[TimeControl "5400+30"]

1. e4 {[%emt 0:00:05]} c6 {[%emt 0:00:03]} 2. d4 {[%emt 0:03:02]} d5 {[%emt 0:00:05]} 3. f3 {[%emt 0:05:24]} dxe4 {[%emt 0:00:08]} 4. fxe4 {[%emt 0:00:11]} e5 {[%emt 0:00:06]} 5. Nf3 {[%emt 0:01:36]} Bg4 {[%emt 0:00:12]} 6. Bd3 {[%emt 0:04:41]} exd4 {[%emt 0:01:08]} 7. O-O {[%emt 0:00:33]} Bd6 {[%emt 0:00:49]} 8. e5 {[%emt 0:02:15]} Bc7 {[%emt 0:01:11]} 9. Qe1 {[%emt 0:01:08]} h6 {[%emt 0:01:39]} 10. Qg3 {[%emt 0:12:02]} Nf6 {[%emt 0:11:08]} 11. Bf4 {[%emt 0:00:26]} g5 {[%emt 0:05:49]} 12. Nxg5 {[%emt 0:11:00]} Rg8 {[%emt 0:02:23]} 13. exf6 {[%emt 0:03:17]} Bxf4 {[%emt 0:01:50]} 14. Rxf4 {[%emt 0:06:58]} Be6 {[%emt 0:00:30]} 15. Nxe6 {[%emt 0:00:30]} Rxg3 {[%emt 0:00:14]} 16. Nxd8 {[%emt 0:00:13]} Rxd3 {[%emt 0:00:33]} 17. cxd3 {[%emt 0:00:15]} Kxd8 {[%emt 0:00:04]} 18. Rxd4+ {[%emt 0:02:08]} Kc7 {[%emt 0:00:08]} 19. Nc3 {[%emt 0:00:35]} Na6 {[%emt 0:00:15]} 20. Re1 {[%emt 0:01:23]} 1-0